fUST/lending_fUST_20240731
["ID","MTS","AMOUNT","RATE_DAILY","PERIOD"]
[333697158,1722366648194,-500.0,0.00014498,2]
[333697159,1722366648203,-500.0,0.00014498,2]
[333697160,1722366648213,-502.38203526,0.00014498,2]
[333697161,1722366648224,-500.0,0.00014498,2]
[333697162,1722366648234,-500.0,0.00014498,2]
[333697163,1722366648244,-500.0,0.00014498,2]
[333697164,1722366648262,-500.0,0.00014498,2]
[333697165,1722366648272,-500.0,0.00014498,2]
[333697166,1722366648282,-500.0,0.00014498,2]
[333697167,1722366648292,-518.16092816,0.00014498,2]
[333697168,1722366648301,-500.0,0.00014498,2]
[333697169,1722366648311,-500.0,0.00014498,2]
[333697170,1722366648320,-500.0,0.00014498,2]
[333697171,1722366648330,-501.5405468,0.00014498,2]
[333697172,1722366648340,-502.49066998,0.00014498,2]
[333697173,1722366648352,-500.0,0.00014498,2]
[333697174,1722366648362,-203.835903,0.00014498,2]
[333697175,1722366648373,-390.99085489,0.00014498,2]
[333697176,1722366648385,-500.0,0.00014498,2]
[333697177,1722366648395,-500.0,0.00014498,2]
[333697178,1722366648405,-500.0,0.00014498,2]
[333697179,1722366648415,-500.0,0.00014498,2]
[333697180,1722366648426,-500.0,0.00014498,2]
[333697181,1722366648435,-500.0,0.00014498,2]
[333697182,1722366648445,-500.0,0.00014498,2]
[333697183,1722366648454,-507.50062194,0.00014498,2]
[333697184,1722366648465,-500.0,0.00014498,2]
[333697185,1722366648477,-500.0,0.00014498,2]
[333697186,1722366648486,-500.0,0.00014498,2]
[333697187,1722366648496,-500.0,0.00014498,2]
[333697188,1722366648509,-500.0,0.00014498,2]
[333697189,1722366648519,-500.0,0.00014498,2]
[333697190,1722366648529,-500.0,0.00014498,2]
[333697191,1722366648539,-500.0,0.00014498,2]
[333697192,1722366648548,-500.0,0.00014498,2]
[333697193,1722366648558,-500.0,0.00014498,2]
[333697194,1722366648567,-512.22822767,0.00014498,2]
[333697195,1722366648577,-500.0,0.00014498,2]
[333697196,1722366648587,-183.52297265,0.00014498,2]
[333697197,1722366648596,-500.0,0.00014498,2]
[333697198,1722366648607,-500.0,0.00014498,2]
[333697199,1722366648618,-500.0,0.00014498,2]
[333697200,1722366648630,-500.0,0.00014498,2]
[333697201,1722366648640,-500.0,0.00014498,2]
[333697202,1722366648650,-500.0,0.00014498,2]
[333697203,1722366648661,-1326.65,0.00014498,2]
[333697204,1722366648672,-1326.65,0.00014498,2]
[333697205,1722366648682,-1326.65,0.00014498,2]
[333697206,1722366648695,-849.726941,0.00014498,2]
[333697207,1722366648706,-849.726941,0.00014498,2]
[333697208,1722366648716,-1250.783654,0.00014498,2]
[333697209,1722366648727,-1250.783654,0.00014498,2]
[333697210,1722366648737,-1520.36265,0.00014498,2]
[333697211,1722366648746,-1520.36265,0.00014498,2]
[333697212,1722366648759,-183.683013,0.00014498,2]
[333697213,1722366648768,-183.683013,0.00014498,2]
[333697214,1722366648778,-151.0,0.00014498,2]
[333697215,1722366648790,-227.669845,0.00014498,2]
[333697216,1722366648801,-227.669845,0.00014498,2]
[333697217,1722366648811,-151.0,0.00014498,2]
[333697218,1722366648822,-251.929237,0.00014498,2]
[333697219,1722366648831,-500.0,0.00014498,2]
[333697220,1722366648842,-500.0,0.00014498,2]
[333697221,1722366648853,-500.0,0.00014498,2]
[333697222,1722366648864,-579.552312,0.00014498,2]
[333697223,1722366648874,-579.552312,0.00014498,2]
[333697224,1722366648887,-151.0,0.00014498,2]
[333697225,1722366648896,-928.18432,0.00014498,2]
[333697226,1722366648906,-151.0,0.00014498,2]
[333697227,1722366648915,-928.18432,0.00014498,2]
[333697228,1722366648926,-797.17,0.00014499,2]
[333697229,1722366648936,-890.11,0.00014499,2]
[333697230,1722366648946,-500.0,0.00014499,2]
[333697231,1722366648956,-500.0,0.00014499,2]
[333697232,1722366648966,-500.0,0.00014499,2]
[333697233,1722366648976,-500.0,0.00014499,2]
[333697234,1722366648986,-500.0,0.00014499,2]
[333697235,1722366648995,-500.0,0.00014499,2]
[333697236,1722366649006,-500.0,0.00014499,2]
[333697237,1722366649015,-529.52,0.00014499,2]
[333697238,1722366649024,-500.0,0.00014499,2]
[333697239,1722366649033,-500.0,0.00014499,2]
[333697240,1722366649043,-500.0,0.00014499,2]
[333697241,1722366649052,-500.0,0.00014499,2]
[333697242,1722366649061,-500.0,0.00014499,2]
[333697243,1722366649070,-500.0,0.00014499,2]
[333697244,1722366649080,-500.0,0.00014499,2]
[333697245,1722366649089,-500.0,0.00014499,2]
[333697246,1722366649099,-150.63281037,0.00014499,2]
[333697247,1722366649109,-500.0,0.00014499,2]
[333697248,1722366649119,-230.05758085,0.00014499,2]
[333697249,1722366649128,-500.0,0.00014499,2]
[333697250,1722366649137,-500.0,0.00014499,2]
[333697251,1722366649146,-500.0,0.00014499,2]
[333697252,1722366649155,-500.0,0.00014499,2]
[333697253,1722366649164,-500.0,0.00014499,2]
[333697254,1722366649173,-500.0,0.00014499,2]
[333697255,1722366649183,-500.0,0.00014499,2]
[333697256,1722366649192,-500.0,0.00014499,2]
[333697257,1722366649202,-500.0,0.00014499,2]
[333697258,1722366649212,-500.0,0.00014499,2]
[333697259,1722366649222,-500.0,0.00014499,2]
[333697260,1722366649232,-500.0,0.00014499,2]
[333697261,1722366649243,-500.0,0.00014499,2]
[333697262,1722366649256,-500.0,0.00014499,2]
[333697263,1722366649265,-500.0,0.00014499,2]
[333697264,1722366649274,-500.0,0.00014499,2]
[333697265,1722366649283,-500.0,0.00014499,2]
[333697266,1722366649292,-500.0,0.00014499,2]
[333697267,1722366649302,-500.0,0.00014499,2]
[333697268,1722366649312,-500.0,0.00014499,2]
[333697269,1722366649321,-500.0,0.00014499,2]
[333697270,1722366649331,-500.0,0.00014499,2]
[333697271,1722366649341,-500.0,0.00014499,2]
[333697272,1722366649350,-500.0,0.00014499,2]
[333697273,1722366649360,-500.0,0.00014499,2]
[333697274,1722366649369,-500.0,0.00014499,2]
[333697275,1722366649379,-500.0,0.00014499,2]
[333697276,1722366649389,-500.0,0.00014499,2]
[333697277,1722366649399,-500.0,0.00014499,2]
[333697278,1722366649409,-500.0,0.00014499,2]
[333697279,1722366649420,-500.0,0.00014499,2]
[333697280,1722366649429,-500.0,0.00014499,2]
[333697281,1722366649440,-500.0,0.00014499,2]
[333697282,1722366649450,-500.0,0.00014499,2]
[333697283,1722366649460,-500.0,0.00014499,2]
[333697284,1722366649469,-500.0,0.00014499,2]
[333697285,1722366649481,-500.0,0.00014499,2]
[333697286,1722366649491,-500.0,0.00014499,2]
[333697287,1722366649503,-500.0,0.00014499,2]
[333697288,1722366649513,-500.0,0.00014499,2]
[333697289,1722366649522,-500.0,0.00014499,2]
[333697290,1722366649532,-500.0,0.00014499,2]
[333697291,1722366649542,-500.0,0.00014499,2]
[333697292,1722366649552,-500.0,0.00014499,2]
[333697293,1722366649561,-500.0,0.00014499,2]
[333697294,1722366649570,-500.0,0.00014499,2]
[333697295,1722366649581,-500.0,0.00014499,2]
[333697296,1722366649590,-500.0,0.00014499,2]
[333697297,1722366649600,-541.21,0.00014499,2]
[333697298,1722366649609,-500.0,0.00014499,2]
[333697299,1722366649619,-500.0,0.00014499,2]
[333697300,1722366649628,-500.0,0.00014499,2]
[333697301,1722366649638,-500.0,0.00014499,2]
[333697302,1722366649648,-500.0,0.00014499,2]
[333697303,1722366649657,-500.0,0.00014499,2]
[333697304,1722366649667,-500.0,0.00014499,2]
[333697305,1722366649677,-500.0,0.00014499,2]
[333697306,1722366649687,-500.0,0.00014499,2]
[333697307,1722366649697,-500.0,0.00014499,2]
[333697308,1722366649707,-500.0,0.00014499,2]
[333697309,1722366649716,-500.0,0.00014499,2]
[333697310,1722366649726,-500.0,0.00014499,2]
[333697311,1722366649736,-500.0,0.00014499,2]
[333697312,1722366649746,-500.0,0.00014499,2]
[333697313,1722366649758,-500.0,0.00014499,2]
[333697314,1722366649768,-500.0,0.00014499,2]
[333697315,1722366649779,-500.0,0.00014499,2]
[333697316,1722366649788,-500.0,0.00014499,2]
[333697317,1722366649798,-500.0,0.00014499,2]
[333697318,1722366649807,-500.0,0.00014499,2]
[333697319,1722366649817,-908.46,0.00014499,2]
[333697320,1722366649827,-908.46,0.00014499,2]
[333697321,1722366649836,-908.46,0.00014499,2]
[333697322,1722366649846,-908.46,0.00014499,2]
[333697323,1722366649855,-908.46,0.00014499,2]
[333697324,1722366649864,-500.0,0.00014499,2]
[333697325,1722366649875,-908.46,0.00014499,2]
[333697326,1722366649888,-500.0,0.00014499,2]
[333697327,1722366649899,-500.0,0.00014499,2]
[333697328,1722366649909,-500.0,0.00014499,2]
[333697329,1722366649919,-500.0,0.00014499,2]
[333697330,1722366649930,-500.0,0.00014499,2]
[333697331,1722366649940,-500.0,0.00014499,2]
[333697332,1722366649951,-500.0,0.00014499,2]
[333697333,1722366649962,-500.0,0.00014499,2]
[333697334,1722366649973,-500.0,0.00014499,2]
[333697335,1722366649983,-500.0,0.00014499,2]
[333697336,1722366649994,-500.0,0.00014499,2]
[333697337,1722366650006,-500.0,0.00014499,2]
[333697338,1722366650019,-500.0,0.00014499,2]
[333697339,1722366650029,-500.0,0.00014499,2]
[333697340,1722366650039,-500.0,0.00014499,2]
[333697341,1722366650048,-500.0,0.00014499,2]
[333697342,1722366650059,-500.0,0.00014499,2]
[333697343,1722366650069,-500.0,0.00014499,2]
[333697344,1722366650080,-500.0,0.00014499,2]
[333697345,1722366650090,-500.0,0.00014499,2]
[333697346,1722366650100,-500.0,0.00014499,2]
[333697347,1722366650110,-500.0,0.00014499,2]
[333697348,1722366650119,-500.0,0.00014499,2]
[333697349,1722366650130,-500.0,0.00014499,2]
[333697350,1722366650141,-500.0,0.00014499,2]
[333697351,1722366650150,-500.0,0.00014499,2]
[333697352,1722366650160,-500.0,0.00014499,2]
[333697353,1722366650170,-500.0,0.00014499,2]
[333697354,1722366650180,-500.0,0.00014499,2]
[333697355,1722366650191,-500.0,0.00014499,2]
[333697356,1722366650201,-500.0,0.00014499,2]
[333697357,1722366650212,-500.0,0.00014499,2]
[333697358,1722366650223,-500.0,0.00014499,2]
[333697359,1722366650233,-500.0,0.00014499,2]
[333697360,1722366650416,-500.0,0.00014499,2]
[333697361,1722366650426,-502.19630273,0.00014499,2]
[333697362,1722366650437,-500.0,0.00014499,2]
[333697363,1722366650447,-500.0,0.00014499,2]
[333697364,1722366650459,-500.0,0.00014499,2]
[333697365,1722366650468,-500.0,0.00014499,2]
[333697366,1722366650478,-500.0,0.00014499,2]
[333697367,1722366650490,-169.06239659,0.00014499,2]
[333697368,1722366650501,-500.0,0.00014499,2]
[333697369,1722366650511,-500.0,0.00014499,2]
[333697370,1722366650523,-500.0,0.00014499,2]
[333697371,1722366650534,-500.0,0.00014499,2]
[333697372,1722366650546,-500.0,0.00014499,2]
[333697373,1722366650558,-500.0,0.00014499,2]
[333697374,1722366650567,-611.65,0.00014499,2]
[333697375,1722366650578,-611.65,0.00014499,2]
[333697376,1722366650587,-611.65,0.00014499,2]
[333697377,1722366650597,-611.65,0.00014499,2]
[333697378,1722366650606,-611.65,0.00014499,2]
[333697379,1722366650616,-611.65,0.00014499,2]
[333697380,1722366650626,-500.0,0.00014499,2]
[333697381,1722366650637,-500.0,0.00014499,2]
[333697382,1722366650647,-500.0,0.00014499,2]
[333697383,1722366650657,-500.0,0.00014499,2]
[333697384,1722366650667,-500.0,0.00014499,2]
[333697385,1722366650677,-500.0,0.00014499,2]
[333697386,1722366650687,-500.0,0.00014499,2]
[333697387,1722366650697,-500.0,0.00014499,2]
[333697388,1722366650707,-500.0,0.00014499,2]
[333697389,1722366650716,-500.0,0.00014499,2]
[333697390,1722366650726,-500.0,0.00014499,2]
[333697391,1722366650735,-500.0,0.00014499,2]
[333697392,1722366650746,-500.0,0.00014499,2]
[333697393,1722366650757,-500.0,0.00014499,2]
[333697394,1722366650766,-500.0,0.00014499,2]
[333697395,1722366650776,-500.0,0.00014499,2]
[333697396,1722366650785,-572.61,0.00014499,2]
[333697397,1722366650795,-500.0,0.00014499,2]
[333697398,1722366650805,-352.54964655,0.00014499,2]
[333697399,1722366650814,-500.0,0.00014499,2]
[333697400,1722366650823,-500.0,0.00014499,2]
[333697401,1722366650833,-645.26,0.00014499,2]
[333697402,1722366650842,-500.0,0.00014499,2]
[333697403,1722366650852,-606.92,0.00014499,2]
[333697404,1722366650862,-184.429354,0.00014499,2]
[333697405,1722366650871,-151.0,0.00014499,2]
[333697406,1722366650883,-157.657305,0.00014499,2]
[333697407,1722366650894,-151.0,0.00014499,2]
[333697408,1722366650903,-165.247175,0.00014499,2]
[333697409,1722366650913,-165.247175,0.00014499,2]
[333697410,1722366650923,-151.0,0.00014499,2]
[333697411,1722366650932,-580.861164,0.00014499,2]
[333697412,1722366650942,-580.861164,0.00014499,2]
[333697413,1722366650951,-500.0,0.00014499,2]
[333697414,1722366650963,-500.0,0.00014499,2]
[333697415,1722366650974,-500.0,0.00014499,2]
[333697416,1722366650984,-500.0,0.00014499,2]
[333697417,1722366650993,-500.0,0.00014499,2]
[333697418,1722366651006,-500.0,0.00014499,2]
[333697419,1722366651015,-500.0,0.00014499,2]
[333697420,1722366651025,-372.48106579,0.00014499,2]
[333697421,1722366651034,-1326.65,0.00014499,2]
[333697422,1722366651044,-1326.65,0.00014499,2]
[333697423,1722366651053,-1326.65,0.00014499,2]
[333697424,1722366651062,-1326.65,0.00014499,2]
[333697425,1722366651072,-1326.65,0.00014499,2]
[333697426,1722366651082,-1326.65,0.00014499,2]
[333697427,1722366651091,-1326.65,0.00014499,2]
[333697428,1722366651101,-1326.65,0.00014499,2]
[333697429,1722366651111,-1326.65,0.00014499,2]
[333697430,1722366651121,-1326.65,0.00014499,2]
[333697431,1722366651133,-1326.77287596,0.00014499,2]
[333697432,1722366651143,-151.0,0.00014499,2]
[333697433,1722366651153,-234.588654,0.00014499,2]
[333697434,1722366651163,-234.588654,0.00014499,2]
[333697435,1722366651172,-413.59527,0.00014499,2]
[333697436,1722366651181,-413.59527,0.00014499,2]
[333697437,1722366651190,-235.763955,0.00014499,2]
[333697438,1722366651200,-348.525714,0.00014499,2]
[333697439,1722366651210,-235.763955,0.00014499,2]
[333697440,1722366651220,-348.525714,0.00014499,2]
[333697441,1722366651230,-151.0,0.00014499,2]
[333697442,1722366651239,-1102.214704,0.00014499,2]
[333697443,1722366651251,-1102.214704,0.00014499,2]
[333697444,1722366651261,-151.0,0.00014499,2]
[333697445,1722366651270,-333.853197,0.00014499,2]
[333697446,1722366651279,-333.853197,0.00014499,2]
[333697447,1722366651289,-242.271383,0.00014499,2]
[333697448,1722366651298,-242.271383,0.00014499,2]
[333697449,1722366651308,-151.0,0.00014499,2]
[333697450,1722366651318,-151.0,0.00014499,2]
[333697451,1722366651327,-151.0,0.00014499,2]
[333697452,1722366651336,-249.499185,0.00014499,2]
[333697453,1722366651346,-249.499185,0.00014499,2]
[333697454,1722366651355,-849.726941,0.00014499,2]
[333697455,1722366651364,-1366.394195,0.00014499,2]
[333697456,1722366651374,-849.726941,0.00014499,2]
[333697457,1722366651383,-1366.394195,0.00014499,2]
[333697458,1722366651393,-1250.783654,0.00014499,2]
[333697459,1722366651403,-1250.783654,0.00014499,2]
[333697460,1722366651412,-1520.36265,0.00014499,2]
[333697461,1722366651421,-1520.36265,0.00014499,2]
[333697462,1722366651430,-183.683013,0.00014499,2]
[333697463,1722366651440,-183.683013,0.00014499,2]
[333697464,1722366651449,-151.0,0.00014499,2]
[333697465,1722366651459,-227.669845,0.00014499,2]
[333697466,1722366651468,-227.669845,0.00014499,2]
[333697467,1722366651478,-151.0,0.00014499,2]
[333697468,1722366651487,-449.58661596,0.00014499,2]
[333697469,1722366651497,-579.552312,0.00014499,2]
[333697470,1722366651509,-579.552312,0.00014499,2]
[333697471,1722366651518,-151.0,0.00014499,2]
[333697472,1722366651528,-928.18432,0.00014499,2]
[333697473,1722366651538,-928.18432,0.00014499,2]
[333697474,1722366651547,-151.0,0.00014499,2]
[333697475,1722366651556,-928.18432,0.00014499,2]
[333697476,1722366651566,-928.184321,0.00014499,2]
[333697477,1722366651575,-206260.51242052,0.000145,7]
[333697478,1722366651584,-124998.57719326,0.000145,7]
[333697479,1722366651594,-151.0,0.000145,2]
[333697480,1722366651604,-151.0,0.000145,2]
[333697481,1722366651613,-151.0,0.000145,2]
[333697482,1722366651622,-151.0,0.000145,2]
[333697483,1722366651631,-152.97,0.000145,2]
[333697484,1722366651640,-151.0,0.000145,2]
[333697485,1722366651649,-151.0,0.000145,2]
[333697486,1722366651659,-2710.44554482,0.000145,2]
[333697487,1722366651668,-151.0,0.000145,2]
[333697488,1722366651677,-151.0,0.000145,2]
[333697489,1722366651686,-151.0,0.000145,2]
[333697490,1722366651695,-151.370208,0.000145,2]
[333697491,1722366651705,-151.0,0.000145,2]
[333697492,1722366651714,-151.0,0.000145,2]
[333697493,1722366651723,-151.07311,0.000145,2]
[333697494,1722366651733,-150.112233,0.000145,2]
[333697495,1722366651742,-151.0,0.000145,2]
[333697496,1722366651753,-151.0,0.000145,2]
[333697497,1722366651763,-151.0,0.000145,2]
[333697498,1722366651772,-151.0,0.000145,2]
[333697499,1722366651781,-151.0,0.000145,2]
[333697500,1722366651791,-165.247175,0.000145,2]
[333697501,1722366651800,-165.247175,0.000145,2]
[333697502,1722366651809,-165.247175,0.000145,2]
[333697503,1722366651818,-165.247175,0.000145,2]
[333697504,1722366651827,-151.0,0.000145,2]
[333697505,1722366651837,-151.0,0.000145,2]
[333697506,1722366651846,-580.861164,0.000145,2]
[333697507,1722366651855,-580.861164,0.000145,2]
[333697508,1722366651865,-178.467501,0.000145,2]
[333697509,1722366651874,-178.467501,0.000145,2]
[333697510,1722366651887,-178.467501,0.000145,2]
[333697511,1722366651897,-178.467501,0.000145,2]
[333697512,1722366651906,-580.861164,0.000145,2]
[333697513,1722366651916,-580.861164,0.000145,2]
[333697514,1722366651926,-151.0,0.000145,2]
[333697515,1722366651936,-151.0,0.000145,2]
[333697516,1722366651946,-1337.900717,0.000145,2]
[333697517,1722366651955,-1337.900717,0.000145,2]
[333697518,1722366651966,-1337.900717,0.000145,2]
[333697519,1722366651977,-1337.900717,0.000145,2]
[333697520,1722366651986,-151.0,0.000145,2]
[333697521,1722366651996,-151.0,0.000145,2]
[333697522,1722366652007,-234.588654,0.000145,2]
[333697523,1722366652016,-234.588654,0.000145,2]
[333697524,1722366652026,-234.588654,0.000145,2]
[333697525,1722366652035,-234.588654,0.000145,2]
[333697526,1722366652045,-413.59527,0.000145,2]
[333697527,1722366652055,-413.59527,0.000145,2]
[333697528,1722366652065,-413.59527,0.000145,2]
[333697529,1722366652075,-413.59527,0.000145,2]
[333697530,1722366652085,-235.763955,0.000145,2]
[333697531,1722366652094,-235.763955,0.000145,2]
[333697532,1722366652104,-348.525714,0.000145,2]
[333697533,1722366652114,-348.525714,0.000145,2]
[333697534,1722366652124,-235.763955,0.000145,2]
[333697535,1722366652133,-235.763955,0.000145,2]
[333697536,1722366652143,-348.525714,0.000145,2]
[333697537,1722366652152,-348.525714,0.000145,2]
[333697538,1722366652162,-151.0,0.000145,2]
[333697539,1722366652172,-151.0,0.000145,2]
[333697540,1722366652182,-1102.214704,0.000145,2]
[333697541,1722366652191,-1102.214704,0.000145,2]
[333697542,1722366652200,-1102.214704,0.000145,2]
[333697543,1722366652211,-1102.214704,0.000145,2]
[333697544,1722366652220,-151.0,0.000145,2]
[333697545,1722366652230,-151.0,0.000145,2]
[333697546,1722366652239,-333.853197,0.000145,2]
[333697547,1722366652249,-333.853197,0.000145,2]
[333697548,1722366652259,-333.853197,0.000145,2]
[333697549,1722366652269,-333.853197,0.000145,2]
[333697550,1722366652279,-242.271383,0.000145,2]
[333697551,1722366652288,-242.271383,0.000145,2]
[333697552,1722366652297,-242.271383,0.000145,2]
[333697553,1722366652307,-242.271383,0.000145,2]
[333697554,1722366652316,-151.0,0.000145,2]
[333697555,1722366652326,-151.0,0.000145,2]
[333697556,1722366652336,-151.0,0.000145,2]
[333697557,1722366652346,-151.0,0.000145,2]
[333697558,1722366652355,-151.0,0.000145,2]
[333697559,1722366652364,-151.0,0.000145,2]
[333697560,1722366652374,-249.499185,0.000145,2]
[333697561,1722366652384,-249.499185,0.000145,2]
[333697562,1722366652393,-249.499185,0.000145,2]
[333697563,1722366652403,-249.499185,0.000145,2]
[333697564,1722366652412,-849.726941,0.000145,2]
[333697565,1722366652421,-849.726941,0.000145,2]
[333697566,1722366652430,-1366.394195,0.000145,2]
[333697567,1722366652440,-1366.394195,0.000145,2]
[333697568,1722366652449,-849.726941,0.000145,2]
[333697569,1722366652459,-849.726941,0.000145,2]
[333697570,1722366652468,-1366.394195,0.000145,2]
[333697571,1722366652477,-1366.394195,0.000145,2]
[333697572,1722366652487,-1250.783654,0.000145,2]
[333697573,1722366652496,-1250.783654,0.000145,2]
[333697574,1722366652507,-1250.783654,0.000145,2]
[333697575,1722366652516,-1250.783654,0.000145,2]
[333697576,1722366652526,-1520.36265,0.000145,2]
[333697577,1722366652535,-1520.36265,0.000145,2]
[333697578,1722366652544,-1520.36265,0.000145,2]
[333697579,1722366652554,-1520.36265,0.000145,2]
[333697580,1722366652563,-183.683013,0.000145,2]
[333697581,1722366652573,-183.683013,0.000145,2]
[333697582,1722366652583,-183.683013,0.000145,2]
[333697583,1722366652592,-183.683013,0.000145,2]
[333697584,1722366652601,-151.680193,0.000145,2]
[333697585,1722366652610,-227.669845,0.000145,2]
[333697586,1722366652620,-227.669845,0.000145,2]
[333697587,1722366652629,-227.669845,0.000145,2]
[333697588,1722366652639,-227.669845,0.000145,2]
[333697589,1722366652648,-151.0,0.000145,2]
[333697590,1722366652658,-151.0,0.000145,2]
[333697591,1722366652667,-282.45704326,0.000145,2]
[333697717,1722367837891,-170.3050362,0.00011762,2]
[333697718,1722367837901,-165.494038,0.00012584,2]
[333697719,1722367837911,-165.494038,0.00012619,2]
[333697720,1722367837921,-165.494038,0.00012653,2]
[333697721,1722367837931,-165.494038,0.00012688,2]
[333697722,1722367837941,-165.494038,0.00012722,2]
[333697723,1722367837951,-165.494038,0.00012757,2]
[333697724,1722367837961,-165.494038,0.00012791,2]
[333697725,1722367837970,-165.494038,0.00012826,2]
[333697726,1722367837979,-165.494038,0.0001286,2]
[333697727,1722367837989,-165.494038,0.00012895,2]
[333697728,1722367837999,-165.494038,0.0001293,2]
[333697729,1722367838008,-165.494038,0.00012964,2]
[333697730,1722367838018,-164.338713,0.00012986,2]
[333697731,1722367838027,-165.494038,0.00012999,2]
[333697732,1722367838037,-329.58346669,0.00013,2]
[333697733,1722367838046,-165.494038,0.00013033,2]
[333697734,1722367838056,-165.494038,0.00013068,2]
[333697735,1722367838066,-165.494038,0.00013102,2]
[333697736,1722367838075,-165.494038,0.00013137,2]
[333697737,1722367838084,-165.494038,0.00013171,2]
[333697738,1722367838094,-165.494038,0.00013206,2]
[333697739,1722367838103,-165.494038,0.0001324,2]
[333697740,1722367838115,-2204.12237038,0.00013497,2]
[333697741,1722367838124,-300.0,0.00013497,2]
[333697742,1722367838134,-15209.21270123,0.00013596,2]
[333697750,1722367840213,-24183.6761204,0.00013596,2]
[333697751,1722367840223,-177.94091556,0.00013597,2]
[333697752,1722367840232,-6724.40648576,0.00013598,2]
[333697753,1722367840243,-22582.77871028,0.000136,2]
[333697819,1722367845920,-500.0,0.000136,2]
[333697951,1722369032280,-209.09286746,9.999e-05,2]
[333697952,1722369032291,-170.130636,0.00012414,2]
[333697953,1722369032301,-170.130636,0.00012479,2]
[333697954,1722369032311,-170.130636,0.00012544,2]
[333697955,1722369032326,-170.130636,0.00012608,2]
[333697956,1722369032336,-170.130636,0.00012673,2]
[333697957,1722369032348,-170.130636,0.00012738,2]
[333697958,1722369032359,-170.130636,0.00012802,2]
[333697959,1722369032372,-170.130636,0.00012867,2]
[333697960,1722369032382,-170.130636,0.00012932,2]
[333697961,1722369032394,-163.992243,0.00012986,2]
[333697962,1722369032404,-170.130636,0.00012997,2]
[333697963,1722369032417,-170.130636,0.00013061,2]
[333697964,1722369032429,-4256.88562057,0.00013293,2]
[333697965,1722369032441,-367.69126021,0.00013394,2]
[333697966,1722369032455,-2025.93931673,0.00013597,2]
[333697967,1722369032466,-177.94091556,0.00013598,2]
[333697968,1722369032477,-300.0,0.00013599,2]
[333697969,1722369032487,-2748.86875777,0.000136,2]
[333697970,1722369032498,-250.04869026,0.000136,2]
[333697971,1722369032509,-1629.42771774,0.000136,2]
[333697972,1722369032519,-738.58105149,0.000136,2]
[333697973,1722369032530,-419.15440362,0.000136,2]
[333697974,1722369032541,-13030.34215315,0.00013688,2]
[333697975,1722369032556,-652.22951312,0.00013688,2]
[333697976,1722369032576,-4255.13798104,0.00013688,2]
[333698009,1722369037999,-3336.51474819,0.00013688,2]
[333698010,1722369038008,-500.0,0.00013697,2]
[333698011,1722369038019,-500.0,0.00013697,2]
[333698012,1722369038028,-500.0,0.00013697,2]
[333698013,1722369038040,-500.0,0.00013697,2]
[333698014,1722369038050,-4179.20921753,0.00013698,5]
[333698015,1722369038061,-500.0,0.00013698,2]
[333698016,1722369038072,-500.0,0.00013698,2]
[333698017,1722369038082,-1185.83,0.00013698,2]